[Event "14th Margaryan Memorial-GM 2024"]
[Site "Yerevan"]
[Date "2024.01.09"]
[Round "2.1"]
[White "Babujian, Levon"]
[Black "Grebnev, Aleksey"]
[Result "1/2-1/2"]
[ECO "E11"]
[WhiteElo "2346"]
[BlackElo "2535"]
[Annotator "TA"]
[PlyCount "65"]
[EventDate "2024.01.08"]
[EventType "tourn"]
[EventCountry "ARM"]
[SourceTitle "playchess.com"]
[Source "ChessBase"]
[SourceQuality "1"]
[TimeControl "40/5400+30:1800+30"]

{[%evp 12,65,17,22,20,29,15,0,0,0,0,0,0,0,9,10,27,30,15,24,25,21,27,24,15,16,20,20,38,34,33,22,77,66,62,62,76,6,9,0,0,0,0,2,7,0,0,0,0,0,0,0,0,0,0,0]} 1. d4 {[%emt 0:00:04]} Nf6 {[%emt 0:00:11]} 2. c4 {[%emt 0:00:06]} e6 {[%emt 0:00:06]} 3. Nf3 {[%emt 0:00:15]} Bb4+ {[%emt 0:01:37]} 4. Bd2 {[%emt 0:00:20]} a5 {[%emt 0:00:07]} 5. g3 {[%emt 0:01:30]} d5 {[%emt 0:00:40]} 6. Bg2 {[%emt 0:00:10]} O-O {[%emt 0:00:09]} 7. O-O {[%emt 0:08:48]} dxc4 {[%emt 0:00:33] E11: Bogo-Indian.} 8. Qc2 {[%emt 0:00:17]} Bxd2 {[%emt 0:00:06]} 9. Nbxd2 {[%emt 0:01:32]} b5 $1 {[%emt 0:00:06]} 10. a4 {[%emt 0:02:43]} c6 {[%emt 0:00:17]} 11. b3 {[%emt 0:02:31]} cxb3 {[%emt 0:01:52]} 12. Nxb3 {[%emt 0:00:21]} Nd5 {[%emt 0:01:07]} 13. e4 {[%emt 0:04:26]} Nb4 {[%emt 0:08:41]} 14. Qc3 {[%emt 0:02:12]} Ba6 {[%emt 0:00:15] And now ...bxa4 would win.} 15. axb5 {[%emt 0:09:33]} Bxb5 {[%emt 0:00:07]} 16. Rfc1 {[%emt 0:00:48]} Nd7 {[%emt 0:02:48] [#]} 17. Nxa5 $1 {[%emt 0:04:40][%mdl 64] Remove Defender} Rxa5 {[%emt 0:00:08]} 18. Qxb4 {[%emt 0:00:14]} Rxa1 {[%emt 0:00:04]} 19. Rxa1 {[%emt 0:00:05] [#]} Nf6 $146 {[%emt 0:02:01]} ({Predecessor:} 19... Qb6 20. Bf1 h6 21. Rb1 Rb8 22. Qd6 Nf6 23. Qe5 Qd8 24. Nd2 Nd7 {½-½ Goncalves,G (1748)-Nogueira,D (1691) Portugal op Oeiras 2015 (8)}) 20. Ne5 {[%emt 0:02:22]} Nd7 {[%emt 0:00:10]} 21. Ng4 {[%emt 0:03:07]} Nf6 {[%emt 0:00:49] [#]} (21... Qb6 $11) 22. Nxf6+ $1 $16 {[%emt 0:06:33]} Qxf6 {[%emt 0:00:10]} 23. h4 {[%emt 0:03:03] White is more active.} h6 {[%emt 0:01:33]} 24. Qc5 {[%emt 0:04:43]} (24. Ra3 $16) 24... Rd8 $11 {[%emt 0:02:05] The position is equal.} 25. e5 {[%emt 0:06:16]} Qf5 {[%emt 0:00:21]} 26. Qb6 {[%emt 0:00:18]} Rc8 {[%emt 0:02:15]} 27. Qb7 {[%emt 0:01:32]} Rd8 {[%emt 0:00:44]} 28. Ra8 {[%emt 0:03:28]} Rxa8 {[%emt 0:00:09]} 29. Qxa8+ {[%emt 0:00:11]} Kh7 {[%emt 0:00:04]} 30. Bxc6 {[%emt 0:00:41]} Qb1+ {[%emt 0:00:04]} 31. Kh2 {[%emt 0:00:14] Strongly threatening Be4+.} Bxc6 {[%emt 0:00:03]} 32. Qxc6 {[%emt 0:00:04]} Qd3 {[%emt 0:00:10] Repels Qf3} 33. Qd7 {[%emt 0:17:20] Weighted Error Value: White=0.07 (flawless) /Black=0.05 (flawless)} 1/2-1/2

[Event "14th Margaryan Memorial-GM 2024"]
[Site "Yerevan"]
[Date "2024.01.09"]
[Round "2.2"]
[White "Ivanov, Sergey"]
[Black "Sorensen, Hampus"]
[Result "1/2-1/2"]
[ECO "D35"]
[WhiteElo "2462"]
[BlackElo "2458"]
[Annotator "TA"]
[PlyCount "80"]
[EventDate "2024.01.08"]
[EventType "tourn"]
[EventCountry "ARM"]
[SourceTitle "playchess.com"]
[Source "ChessBase"]
[SourceQuality "1"]
[TimeControl "40/5400+30:1800+30"]

{[%evp 13,80,14,18,16,14,6,25,3,13,3,25,24,35,30,35,24,40,25,32,14,33,10,111,108,124,0,0,0,0,0,0,0,0,0,0,0,0,0,0,0,0,0,20,20,25,25,50,42,48,48,43,27,27,27,27,27,27,27,27,27,27,27,27,0,20,0,27,0,27]} 1. d4 {[%emt 0:00:04]} Nf6 {[%emt 0:00:17]} 2. c4 {[%emt 0:00:08]} e6 {[%emt 0:00:12]} 3. Nc3 {[%emt 0:00:08]} d5 {[%emt 0:00:16]} 4. cxd5 {[%emt 0:00:22]} exd5 {[%emt 0:00:06]} 5. Bg5 {[%emt 0:00:17]} Be7 {[%emt 0:00:25]} 6. e3 {[%emt 0:00:25]} O-O {[%emt 0:00:14]} 7. Bd3 {[%emt 0:00:31]} Re8 {[%emt 0:00:14]} 8. Nge2 {[%emt 0:05:23] D35: Queen's Gambit Declined: Exchange Variation.} c6 {[%emt 0:01:30]} 9. O-O {[%emt 0:02:19]} a5 $1 {[%emt 0:04:17][%mdl 4] is more profitable than 9...Nbd7 at the moment.} 10. f3 {[%emt 0:06:55] White has an edge.} Nbd7 {[%emt 0:03:20]} 11. Kh1 {[%emt 0:06:48]} Nf8 {[%emt 0:07:47]} 12. Qc2 {[%emt 0:01:56] [#]} Nh5 $146 {[%emt 0:27:36]} ({Predecessor:} 12... Ng6 13. e4 dxe4 14. fxe4 Bg4 15. Rad1 Bxe2 16. Bxe2 Nxe4 17. Nxe4 Bxg5 18. Bc4 Rf8 19. d5 cxd5 20. Rxd5 Qe7 21. Nxg5 {1-0 Kristiansen,J (2405)-Auvinen,E (1972) Wch Seniors 50 24th 2014 (1)}) 13. Bxe7 {[%emt 0:00:39]} Rxe7 {[%emt 0:00:04]} 14. e4 {[%emt 0:03:37]} dxe4 {[%emt 0:00:15]} 15. fxe4 {[%emt 0:00:18]} Bg4 {[%emt 0:03:41]} 16. Rad1 {[%emt 0:07:11]} Rd7 {[%emt 0:14:37]} 17. e5 {[%emt 0:08:45]} Qg5 {[%emt 0:00:24]} (17... g6 $1 $11 {keeps the balance.}) 18. Bf5 $16 {[%emt 0:06:42]} Re7 {[%emt 0:04:22]} 19. Ne4 {[%emt 0:04:11]} (19. Qe4 $16 Nf6 20. Qd3 (20. exf6 Rxe4 21. Nxe4 Qe3 $17) 20... Bxe2 21. Qxe2) 19... Bxf5 $11 {[%emt 0:00:33]} 20. Rxf5 {[%emt 0:00:09]} Qxf5 {[%emt 0:04:56]} 21. Nf6+ $1 {[%emt 0:00:12][%mdl 64] [#] Discovered Attack} Qxf6 $1 {[%emt 0:00:07]} 22. exf6 {[%emt 0:00:06]} Nxf6 {[%emt 0:00:04]} 23. Nc3 {[%emt 0:04:17]} Rd7 {[%emt 0:06:25]} 24. Qb3 {[%emt 0:05:53]} Ne6 {[%emt 0:07:46]} 25. d5 {[%emt 0:02:48]} cxd5 {[%emt 0:00:12]} 26. Nxd5 {[%emt 0:00:17]} Nxd5 {[%emt 0:01:12]} 27. Rxd5 {[%emt 0:00:09]} Rxd5 {[%emt 0:00:12]} 28. Qxd5 {[%emt 0:00:07][%mdl 4096] Endgame KQ-KRN} Rd8 {[%emt 0:00:08]} 29. Qb3 {[%emt 0:02:20][%cal Oh2h3][%mdl 1024] White has compensation.} b6 {[%emt 0:04:13]} 30. h3 {[%emt 0:01:45]} (30. Qxb6 $2 {too greedy.} Rd1+ $19) 30... Rd6 {[%emt 0:00:09]} 31. Qg3 {[%emt 0:01:03]} Rc6 {[%emt 0:00:21]} 32. Qb8+ {[%emt 0:00:38]} Nf8 {[%emt 0:00:04]} 33. Kh2 {[%emt 0:01:17]} Re6 {[%emt 0:01:25]} 34. Qd8 {[%emt 0:01:39]} h6 {[%emt 0:02:59]} 35. Kg3 {[%emt 0:00:56]} g6 {[%emt 0:00:11]} 36. Kf2 {[%emt 0:01:48]} Kg7 {[%emt 0:01:06]} 37. Qd4+ {[%emt 0:00:54]} Kg8 {[%emt 0:00:09]} 38. Qd8 {[%emt 0:02:37]} Kg7 {[%emt 0:00:17]} 39. Qd4+ {[%emt 0:01:15]} Kg8 {[%emt 0:00:07]} 40. Qd8 {[%emt 0:00:00]} Kg7 {[%emt 0:00:00] Weighted Error Value: White=0.10 (very precise) /Black=0.08 (flawless)} 1/2-1/2

[Event "14th Margaryan Memorial-GM 2024"]
[Site "Yerevan"]
[Date "2024.01.09"]
[Round "2.3"]
[White "Davtyan, Arsen"]
[Black "Ohanyan, Emin"]
[Result "1/2-1/2"]
[ECO "E11"]
[WhiteElo "2392"]
[BlackElo "2456"]
[Annotator "RC"]
[PlyCount "65"]
[EventDate "2024.01.08"]
[EventType "tourn"]
[EventCountry "ARM"]
[SourceTitle "playchess.com"]
[Source "ChessBase"]
[SourceQuality "1"]
[TimeControl "40/5400+30:1800+30"]

1. d4 {[%emt 0:00:03]} Nf6 {[%emt 0:01:09]} 2. c4 {[%emt 0:00:06]} e6 {[%emt 0:00:02]} 3. Nf3 {[%emt 0:00:06]} d5 {[%emt 0:00:03]} 4. g3 {[%emt 0:00:07]} Bb4+ {[%emt 0:00:02]} 5. Bd2 {[%emt 0:00:31]} a5 {[%emt 0:00:19]} 6. Bg2 {[%emt 0:05:45]} O-O {[%emt 0:00:39]} 7. O-O {[%emt 0:10:29]} dxc4 {[%emt 0:01:13]} 8. Qc2 {[%emt 0:06:19]} Bxd2 {[%emt 0:00:53]} 9. Nbxd2 {[%emt 0:00:08]} b5 {[%emt 0:00:26]} 10. a4 {[%emt 0:02:18]} c6 {[%emt 0:00:18]} 11. b3 {[%emt 0:02:38]} cxb3 {[%emt 0:03:10]} 12. Nxb3 {[%emt 0:00:05]} Nd5 {[%emt 0:05:20]} 13. e4 {[%emt 0:13:39]} Nb4 {[%emt 0:09:53]} 14. Qc3 {[%emt 0:03:38]} Ba6 {[%emt 0:12:29]} 15. Rfd1 {[%emt 0:10:20]} Nd7 {[%emt 0:05:59]} 16. axb5 {[%emt 0:07:12]} Bxb5 {[%emt 0:00:38]} 17. Nxa5 {[%emt 0:02:17]} Rxa5 {[%emt 0:03:54]} 18. Qxb4 {[%emt 0:00:13]} Rxa1 {[%emt 0:00:05]} 19. Rxa1 {[%emt 0:00:05]} Nf6 {[%emt 0:01:58]} 20. Ne5 {[%emt 0:08:33]} Nd7 {[%emt 0:00:45]} 21. Nc4 {[%emt 0:03:03]} Bxc4 {[%emt 0:05:08]} 22. Qxc4 {[%emt 0:00:05]} Qb6 {[%emt 0:00:23]} 23. Rc1 {[%emt 0:05:26]} Rd8 {[%emt 0:02:10]} 24. Bf3 {[%emt 0:02:38]} g6 {[%emt 0:24:05]} 25. Kg2 {[%emt 0:04:18]} Nf6 {[%emt 0:04:55]} 26. Rd1 {[%emt 0:00:38]} Kg7 {[%emt 0:03:08]} 27. Rd3 {[%emt 0:02:02]} Qb5 {[%emt 0:02:14]} 28. Rc3 {[%emt 0:01:53]} Qb6 {[%emt 0:01:52]} 29. Rd3 {[%emt 0:02:15]} h5 {[%emt 0:00:01]} 30. h4 {[%emt 0:00:47]} Qb5 {[%emt 0:00:07]} 31. Rc3 {[%emt 0:00:12]} Qb6 {[%emt 0:00:11]} 32. Rd3 {[%emt 0:00:04]} Qb5 {[%emt 0:00:11]} 33. Rc3 {[%emt 0:00:05]} 1/2-1/2

[Event "14th Margaryan Memorial-GM 2024"]
[Site "Yerevan"]
[Date "2024.01.09"]
[Round "2.4"]
[White "Shuvalova, Polina"]
[Black "Agasarov, Benik"]
[Result "1/2-1/2"]
[ECO "C54"]
[WhiteElo "2475"]
[BlackElo "2340"]
[Annotator "TA"]
[PlyCount "64"]
[EventDate "2024.01.08"]
[EventType "tourn"]
[EventCountry "ARM"]
[SourceTitle "playchess.com"]
[Source "ChessBase"]
[SourceQuality "1"]
[TimeControl "40/5400+30:1800+30"]

{[%evp 13,64,31,44,27,17,18,11,14,25,20,27,0,0,0,19,26,10,-43,-59,-36,-11,-27,-25,-33,-22,-31,-29,-35,-27,-34,-30,-29,-30,-76,0,0,0,-176,-183,-181,-185,-171,-109,-125,0,-177,0,-108,-6,-4,118,0,0]} 1. e4 {[%emt 0:00:03]} e5 {[%emt 0:00:06]} 2. Nf3 {[%emt 0:00:07]} Nc6 {[%emt 0:00:05]} 3. Bc4 {[%emt 0:00:06]} Nf6 {[%emt 0:00:14]} 4. d3 {[%emt 0:00:09]} Bc5 {[%emt 0:00:11]} 5. c3 {[%emt 0:00:10]} O-O {[%emt 0:00:15]} 6. O-O {[%emt 0:00:07]} d5 {[%emt 0:00:11]} 7. exd5 {[%emt 0:00:16]} Nxd5 {[%emt 0:00:06]} 8. a4 {[%emt 0:00:10] C54: Giuoco Piano: 4 c3 Nf6, main lines with 5 d4 and 5 d3.} a5 {[%emt 0:00:58]} 9. Re1 {[%emt 0:01:32]} Bg4 {[%emt 0:00:31]} 10. Nbd2 {[%emt 0:02:22]} Nb6 {[%emt 0:00:55]} 11. Bb5 {[%emt 0:05:34]} Bd6 {[%emt 0:06:21]} 12. h3 {[%emt 0:01:57]} Bh5 {[%emt 0:00:44]} 13. Ne4 {[%emt 0:03:39]} Na7 {[%emt 0:07:36][%cal Bc6a7,Ba7b5,Bb5c3][%mdl 32]} (13... f5 $5 {[%cal Rf5e4]} 14. Ng3 Bxf3 15. Qxf3 Qd7 $14) 14. d4 {[%emt 0:11:46]} Nxb5 {[%emt 0:05:30]} 15. dxe5 {[%emt 0:02:08] [#]} (15. axb5 $11 exd4 16. Nxd6 Qxd6 17. Qxd4) 15... Nxc3 $1 $15 {[%emt 0:00:34]} 16. bxc3 {[%emt 0:14:35]} Be7 {[%emt 0:05:24] [#]} 17. Qe2 $146 {[%emt 0:00:32]} ({Predecessor:} 17. Qxd8 Rfxd8 18. Nd4 Bg6 19. Bg5 Bxg5 20. Nxg5 h6 21. Ngf3 Nd5 22. c4 Nf4 23. e6 Nxe6 24. Nxe6 fxe6 25. Rxe6 {0-1 Sivuk,V (2520)-Kozionov,K (2439) Moscow Aeroflot op-B 16th 2017 (6)}) 17... Qd5 {[%emt 0:02:18]} 18. Bf4 {[%emt 0:00:44]} Rad8 {[%emt 0:01:39]} 19. g4 {[%emt 0:04:08]} Bg6 {[%emt 0:00:27]} 20. Nd4 {[%emt 0:00:19]} Qd7 {[%emt 0:11:47][%cal Of8e8]} 21. Ng3 {[%emt 0:05:12]} Nd5 {[%emt 0:16:12]} ({Resist} 21... Nxa4 22. e6 Nxc3 23. exd7 $14) 22. Bd2 {[%emt 0:01:55]} Bc5 {[%emt 0:01:05]} 23. h4 {[%emt 0:07:23] [#]} (23. Ngf5 $11) 23... Nxc3 {[%emt 0:02:28]} 24. Bxc3 $11 {[%emt 0:00:23] Strongly threatening Red1.} Bxd4 {[%emt 0:00:04]} 25. Bxd4 {[%emt 0:28:39]} (25. Red1 $11 Bd3 26. Rxd3 Bxf2+ 27. Kxf2 Qxd3 28. Qxd3 Rxd3 29. Bxa5) 25... Qxd4 $19 {[%emt 0:00:12]} 26. h5 {[%emt 0:00:35][%cal Bh4h5,Bh5h6][%mdl 32]} Bd3 {[%emt 0:00:21]} 27. Qf3 {[%emt 0:00:04] [#]} Qd5 {[%emt 0:02:08]} (27... h6 $1 $19 28. Qxb7 Qxg4 29. Qxc7 Bf5) 28. Qe3 {[%emt 0:00:39]} Qd4 {[%emt 0:02:50]} (28... h6 $17 29. Rac1 c6) 29. Qf3 $1 {[%emt 0:00:34]} Qd5 {[%emt 0:00:35]} (29... h6 $19 30. Nf5 Qb4) 30. Qe3 $1 $17 {[%emt 0:00:07]} c5 {[%emt 0:33:43]} (30... h6 $17 31. Rac1 c6) 31. h6 $1 $11 {[%emt 0:10:05] hxg7 is the strong threat.} g6 {[%emt 0:00:30] [#]} (31... Qe6 $11) 32. Rad1 {[%emt 0:00:30]} (32. Nh5 $1 $16 {[%cal Rh5f6] Nf6+ would be deadly.} Qc6 33. Nf6+ Kh8 34. Red1) 32... c4 {[%emt 0:00:30] Weighted Error Value: White=0.20 (precise) /Black=0.37} 1/2-1/2

[Event "14th Margaryan Memorial-GM 2024"]
[Site "Yerevan"]
[Date "2024.01.09"]
[Round "2.5"]
[White "Movahed, Sina"]
[Black "Shahinyan, David"]
[Result "1/2-1/2"]
[ECO "C41"]
[WhiteElo "2450"]
[BlackElo "2436"]
[Annotator "RC"]
[PlyCount "116"]
[EventDate "2024.01.08"]
[EventType "tourn"]
[EventCountry "ARM"]
[SourceTitle "playchess.com"]
[Source "ChessBase"]
[SourceQuality "1"]
[TimeControl "40/5400+30:1800+30"]

1. e4 {[%emt 0:20:38]} d6 {[%emt 0:00:16]} 2. d4 {[%emt 0:00:15]} Nf6 {[%emt 0:00:07]} 3. Nc3 {[%emt 0:00:06]} e5 {[%emt 0:00:09]} 4. Nf3 {[%emt 0:00:15]} Nbd7 {[%emt 0:00:16]} 5. Bc4 {[%emt 0:00:06]} Be7 {[%emt 0:00:24]} 6. O-O {[%emt 0:00:39]} O-O {[%emt 0:00:11]} 7. a4 {[%emt 0:00:35]} c6 {[%emt 0:00:04]} 8. Re1 {[%emt 0:00:36]} exd4 {[%emt 0:00:14]} 9. Nxd4 {[%emt 0:01:36]} Ne5 {[%emt 0:00:32]} 10. Bf1 {[%emt 0:00:52]} Re8 {[%emt 0:00:07]} 11. b3 {[%emt 0:03:00]} Bd7 {[%emt 0:04:16]} 12. Bb2 {[%emt 0:04:16]} Bf8 {[%emt 0:02:26]} 13. Qd2 {[%emt 0:06:00]} Qc7 {[%emt 0:06:09]} 14. Rad1 {[%emt 0:02:02]} a6 {[%emt 0:00:02]} 15. Nde2 {[%emt 0:06:00]} Rad8 {[%emt 0:03:10]} 16. Nf4 {[%emt 0:07:41]} b5 {[%emt 0:05:00]} 17. Nd3 {[%emt 0:01:26]} Ng6 {[%emt 0:04:15]} 18. f3 {[%emt 0:01:31]} Bc8 {[%emt 0:08:24]} 19. axb5 {[%emt 0:05:52]} axb5 {[%emt 0:00:29]} 20. Ne2 {[%emt 0:00:16]} Nd7 {[%emt 0:02:55]} 21. Nd4 {[%emt 0:00:59]} Nde5 {[%emt 0:03:57]} 22. f4 {[%emt 0:06:07]} Nxd3 {[%emt 0:58:07]} 23. cxd3 {[%emt 0:00:28]} d5 {[%emt 0:00:00]} 24. e5 {[%emt 0:03:29]} b4 {[%emt 0:00:00]} 25. Qf2 {[%emt 0:03:04]} c5 {[%emt 0:00:00]} 26. Nc2 {[%emt 0:00:42]} d4 {[%emt 0:00:00]} 27. g3 {[%emt 0:03:22]} Ne7 {[%emt 0:00:00]} 28. Rc1 {[%emt 0:00:46]} Qb6 {[%emt 0:00:00]} 29. Re2 {[%emt 0:01:06]} Be6 {[%emt 0:00:00]} 30. Ne1 {[%emt 0:00:08]} Bxb3 {[%emt 0:00:00]} 31. Nf3 {[%emt 0:00:28]} Nd5 {[%emt 0:00:00]} 32. Nd2 {[%emt 0:00:26]} Ba4 {[%emt 0:00:00]} 33. Nc4 {[%emt 0:00:21]} Qb8 {[%emt 0:00:00]} 34. f5 {[%emt 0:01:20]} Bb5 {[%emt 0:00:00]} 35. e6 {[%emt 0:01:38]} f6 {[%emt 0:00:00]} 36. Bg2 {[%emt 0:00:41]} Nc3 {[%emt 0:00:00]} 37. Ree1 {[%emt 0:00:35]} Bd6 {[%emt 0:00:00]} 38. Qd2 {[%emt 0:03:41]} Qc7 {[%emt 0:00:00]} 39. Ra1 {[%emt 0:02:11]} Be7 {[%emt 0:00:00]} 40. Bf3 {[%emt 0:00:00]} Rb8 {[%emt 0:00:00]} 41. Qc2 {[%emt 0:20:41]} Bc6 {[%emt 0:13:52]} 42. Qg2 {[%emt 0:02:41]} Bxf3 {[%emt 0:02:32]} 43. Qxf3 {[%emt 0:00:01]} Red8 {[%emt 0:01:21]} 44. Ra5 {[%emt 0:00:55]} Qb7 {[%emt 0:04:01]} 45. Qh5 {[%emt 0:00:33]} Rf8 {[%emt 0:03:51]} 46. Rea1 {[%emt 0:00:25]} Nb5 {[%emt 0:00:44]} 47. Ra6 {[%emt 0:05:47]} Qd5 {[%emt 0:00:15]} 48. Qg4 {[%emt 0:02:08]} Rfd8 {[%emt 0:03:00]} 49. Bc1 {[%emt 0:01:31]} Bf8 {[%emt 0:00:17]} 50. Nb6 {[%emt 0:02:35]} Qb7 {[%emt 0:02:11]} 51. Nd7 {[%emt 0:01:31]} Rxd7 {[%emt 0:00:30]} 52. exd7 {[%emt 0:00:02]} Qxd7 {[%emt 0:00:04]} 53. Rxf6 {[%emt 0:00:34]} b3 {[%emt 0:03:37]} 54. Re6 {[%emt 0:01:08]} c4 {[%emt 0:02:05]} 55. dxc4 {[%emt 0:00:11]} Nc7 {[%emt 0:00:01]} 56. Bb2 {[%emt 0:01:47]} Nxe6 {[%emt 0:03:35]} 57. fxe6 {[%emt 0:00:01]} Qc6 {[%emt 0:00:18]} 58. Qf4 {[%emt 0:03:20]} Qxe6 {[%emt 0:00:22]} 1/2-1/2

[Event "14th Margaryan Memorial-GM 2024"]
[Site "Yerevan"]
[Date "2024.01.10"]
[Round "3.1"]
[White "Shahinyan, David"]
[Black "Babujian, Levon"]
[Result "1-0"]
[ECO "B23"]
[WhiteElo "2436"]
[BlackElo "2346"]
[Annotator "RC"]
[PlyCount "45"]
[EventDate "2024.01.08"]
[EventType "tourn"]
[EventCountry "ARM"]
[SourceTitle "playchess.com"]
[Source "ChessBase"]
[SourceQuality "1"]
[TimeControl "40/5400+30:1800+30"]

1. e4 {[%emt 0:00:02]} c5 {[%emt 0:05:05]} 2. Nc3 {[%emt 0:02:05]} e6 {[%emt 0:00:23]} 3. f4 {[%emt 0:00:09]} Nc6 {[%emt 0:01:19]} 4. Nf3 {[%emt 0:00:08]} d5 {[%emt 0:00:56]} 5. Bb5 {[%emt 0:00:06]} Nge7 {[%emt 0:05:52]} 6. Ne5 {[%emt 0:01:39]} f6 {[%emt 0:03:08]} 7. Qh5+ {[%emt 0:09:09]} g6 {[%emt 0:00:23]} 8. Nxg6 {[%emt 0:00:17]} Nxg6 {[%emt 0:03:03]} 9. f5 {[%emt 0:07:21]} Kf7 {[%emt 0:31:58]} 10. exd5 {[%emt 0:11:28]} exd5 {[%emt 0:04:58]} 11. O-O {[%emt 0:17:41]} Bd6 {[%emt 0:03:44]} 12. Nxd5 {[%emt 0:02:33]} Nd4 {[%emt 0:09:26]} 13. Bc4 {[%emt 0:07:07]} b5 {[%emt 0:00:48]} 14. Bd3 {[%emt 0:15:54]} Kg7 {[%emt 0:03:28]} 15. Be4 {[%emt 0:03:21]} Ne5 {[%emt 0:08:47]} 16. c3 {[%emt 0:04:05]} Ndc6 {[%emt 0:04:02]} 17. d4 {[%emt 0:00:55]} Nf7 {[%emt 0:00:17]} 18. Nf4 {[%emt 0:00:26]} Qe8 {[%emt 0:07:42]} 19. Ne6+ {[%emt 0:05:14]} Bxe6 {[%emt 0:00:04]} 20. Qg4+ {[%emt 0:00:12]} Ng5 {[%emt 0:00:59]} 21. Bxg5 {[%emt 0:00:16]} Rg8 {[%emt 0:02:22]} 22. fxe6 {[%emt 0:01:21]} fxg5 {[%emt 0:00:44]} 23. Rf7+ {[%emt 0:00:09]} 1-0

[Event "14th Margaryan Memorial-GM 2024"]
[Site "Yerevan"]
[Date "2024.01.10"]
[Round "3.2"]
[White "Agasarov, Benik"]
[Black "Movahed, Sina"]
[Result "1-0"]
[ECO "E52"]
[WhiteElo "2340"]
[BlackElo "2450"]
[Annotator "RC"]
[PlyCount "123"]
[EventDate "2024.01.08"]
[EventType "tourn"]
[EventCountry "ARM"]
[SourceTitle "playchess.com"]
[Source "ChessBase"]
[SourceQuality "1"]
[TimeControl "40/5400+30:1800+30"]

1. d4 {[%emt 0:00:03]} Nf6 {[%emt 0:00:07]} 2. c4 {[%emt 0:00:06]} e6 {[%emt 0:00:08]} 3. Nc3 {[%emt 0:00:21]} Bb4 {[%emt 0:00:08]} 4. e3 {[%emt 0:00:06]} b6 {[%emt 0:00:38]} 5. Bd2 {[%emt 0:02:28]} Bb7 {[%emt 0:00:24]} 6. Nf3 {[%emt 0:00:07]} O-O {[%emt 0:00:28]} 7. Bd3 {[%emt 0:00:07]} d5 {[%emt 0:03:30]} 8. cxd5 {[%emt 0:00:13]} exd5 {[%emt 0:00:11]} 9. Rc1 {[%emt 0:00:27]} Be7 {[%emt 0:00:31]} 10. Ne5 {[%emt 0:01:40]} c5 {[%emt 0:00:42]} 11. O-O {[%emt 0:00:46]} a6 {[%emt 0:06:22]} 12. f4 {[%emt 0:03:03]} Nc6 {[%emt 0:00:53]} 13. Be1 {[%emt 0:03:48]} cxd4 {[%emt 0:02:08]} 14. Nxc6 {[%emt 0:01:05]} Bxc6 {[%emt 0:00:02]} 15. Ne2 {[%emt 0:00:08]} Bd7 {[%emt 0:01:17]} 16. Nxd4 {[%emt 0:00:11]} Re8 {[%emt 0:01:03]} 17. Qf3 {[%emt 0:07:43]} Ne4 {[%emt 0:08:16]} 18. Bxe4 {[%emt 0:01:24]} dxe4 {[%emt 0:00:07]} 19. Qxe4 {[%emt 0:05:13]} Bc5 {[%emt 0:18:03]} 20. Qf3 {[%emt 0:00:41]} Bb5 {[%emt 0:00:54]} 21. Rf2 {[%emt 0:01:32]} Bd3 {[%emt 0:03:45]} 22. Bc3 {[%emt 0:00:58]} Qd7 {[%emt 0:08:08]} 23. Rd2 {[%emt 0:02:52]} Be4 {[%emt 0:02:54]} 24. Qg3 {[%emt 0:00:10]} Bf8 {[%emt 0:00:54]} 25. h3 {[%emt 0:01:53]} f6 {[%emt 0:00:58]} 26. Kh2 {[%emt 0:01:48]} Qf7 {[%emt 0:00:41]} 27. a3 {[%emt 0:01:28]} Rac8 {[%emt 0:00:32]} 28. Ne2 {[%emt 0:00:27]} a5 {[%emt 0:07:21]} 29. Rcd1 {[%emt 0:01:42]} Rc7 {[%emt 0:00:27]} 30. Bd4 {[%emt 0:03:13]} Rb7 {[%emt 0:01:51]} 31. Bc3 {[%emt 0:04:12]} Bc6 {[%emt 0:01:39]} 32. Rd8 {[%emt 0:00:50]} Rbe7 {[%emt 0:00:29]} 33. Rxe8 {[%emt 0:00:20]} Rxe8 {[%emt 0:00:17]} 34. Bd4 {[%emt 0:00:59]} b5 {[%emt 0:01:59]} 35. Rc1 {[%emt 0:00:24]} Qd5 {[%emt 0:01:06]} 36. Nc3 {[%emt 0:01:41]} Qd6 {[%emt 0:01:35]} 37. Nd1 {[%emt 0:00:27]} Qe6 {[%emt 0:04:03]} 38. Nf2 {[%emt 0:02:35]} b4 {[%emt 0:02:39]} 39. axb4 {[%emt 0:02:21]} axb4 {[%emt 0:00:07]} 40. e4 {[%emt 0:00:00]} h5 {[%emt 0:00:00]} 41. h4 {[%emt 0:34:36]} Ba8 {[%emt 0:26:42]} 42. e5 {[%emt 0:13:53]} Rd8 {[%emt 0:05:27]} 43. Bc5 {[%emt 0:00:49]} fxe5 {[%emt 0:00:57]} 44. Bxf8 {[%emt 0:00:21]} Rxf8 {[%emt 0:00:40]} 45. Rc7 {[%emt 0:00:06]} g6 {[%emt 0:06:48]} 46. fxe5 {[%emt 0:00:19]} Qb6 {[%emt 0:00:24]} 47. Qb3+ {[%emt 0:01:06]} Kh8 {[%emt 0:00:12]} 48. Rf7 {[%emt 0:00:05]} Qd8 {[%emt 0:00:16]} 49. Rxf8+ {[%emt 0:00:30]} Qxf8 {[%emt 0:00:02]} 50. Qe3 {[%emt 0:00:12]} Kg7 {[%emt 0:00:31]} 51. Nh3 {[%emt 0:00:46]} Qe7 {[%emt 0:01:21]} 52. Qd4 {[%emt 0:00:45]} b3 {[%emt 0:00:36]} 53. Ng5 {[%emt 0:00:16]} Kh6 {[%emt 0:00:07]} 54. Qd6 {[%emt 0:02:06]} Qg7 {[%emt 0:00:28]} 55. Ne6 {[%emt 0:01:39]} Qg8 {[%emt 0:00:13]} 56. Qd2+ {[%emt 0:02:52]} Kh7 {[%emt 0:00:02]} 57. Ng5+ {[%emt 0:00:08]} Kh6 {[%emt 0:00:19]} 58. e6 {[%emt 0:00:22]} Qb8+ {[%emt 0:00:22]} 59. g3 {[%emt 0:00:08]} Qb7 {[%emt 0:00:28]} 60. Nf7+ {[%emt 0:00:04]} Kg7 {[%emt 0:00:07]} 61. Qd4+ {[%emt 0:00:04]} Kf8 {[%emt 0:00:06]} 62. Qd8+ {[%emt 0:00:03]} 1-0